fUSD/lending_fUSD_20250221
["ID","MTS","AMOUNT","RATE_DAILY","PERIOD"]
[353927250,1740151832580,-500.0,0.00013424,2]
[353927252,1740151832589,-513.92941309,0.00013424,2]
[353927254,1740151832599,-500.0,0.00013424,2]
[353927256,1740151832612,-500.0,0.00013424,2]
[353927258,1740151832622,-500.0,0.00013424,2]
[353927260,1740151832631,-509.60346566,0.00013424,2]
[353927262,1740151832640,-500.0,0.00013424,2]
[353927264,1740151832650,-500.0,0.00013424,2]
[353927266,1740151832658,-501.98615083,0.00013424,2]
[353927268,1740151832668,-500.0,0.00013424,2]
[353927269,1740151832678,-520.88,0.00013424,2]
[353927271,1740151832689,-500.0,0.00013424,2]
[353927274,1740151832699,-500.0,0.00013424,2]
[353927275,1740151832709,-666.75,0.00013424,2]
[353927278,1740151832718,-500.0,0.00013424,2]
[353927280,1740151832728,-500.0,0.00013424,2]
[353927282,1740151832737,-500.0,0.00013424,2]
[353927283,1740151832745,-727.8,0.00013424,2]
[353927286,1740151832754,-500.0,0.00013424,2]
[353927287,1740151832764,-500.0,0.00013424,2]
[353927289,1740151832773,-500.0,0.00013424,2]
[353927291,1740151832782,-500.0,0.00013424,2]
[353927293,1740151832791,-500.0,0.00013424,2]
[353927295,1740151832800,-500.0,0.00013424,2]
[353927297,1740151832810,-500.0,0.00013424,2]
[353927299,1740151832819,-500.0,0.00013424,2]
[353927301,1740151832829,-500.0,0.00013424,2]
[353927303,1740151832839,-500.0,0.00013424,2]
[353927305,1740151832849,-500.0,0.00013424,2]
[353927307,1740151832859,-762.83,0.00013424,2]
[353927309,1740151832868,-500.0,0.00013424,2]
[353927311,1740151832879,-500.0,0.00013424,2]
[353927313,1740151832888,-500.0,0.00013424,2]
[353927315,1740151832897,-500.0,0.00013424,2]
[353927317,1740151832906,-500.0,0.00013424,2]
[353927319,1740151832916,-500.0,0.00013424,2]
[353927321,1740151832925,-500.0,0.00013424,2]
[353927323,1740151832934,-500.0,0.00013424,2]
[353927325,1740151832943,-500.0,0.00013424,2]
[353927327,1740151832953,-500.0,0.00013424,2]
[353927329,1740151832962,-500.0,0.00013424,2]
[353927330,1740151832972,-500.0,0.00013424,2]
[353927332,1740151832982,-500.0,0.00013424,2]
[353927334,1740151832991,-500.0,0.00013424,2]
[353927336,1740151833001,-500.0,0.00013424,2]
[353927338,1740151833011,-500.0,0.00013424,2]
[353927340,1740151833021,-500.0,0.00013424,2]
[353927342,1740151833031,-500.0,0.00013424,2]
[353927345,1740151833041,-500.0,0.00013424,2]
[353927346,1740151833051,-500.0,0.00013424,2]
[353927348,1740151833061,-500.0,0.00013424,2]
[353927350,1740151833071,-500.0,0.00013424,2]
[353927352,1740151833082,-500.0,0.00013424,2]
[353927354,1740151833091,-500.0,0.00013424,2]
[353927356,1740151833102,-500.0,0.00013424,2]
[353927358,1740151833116,-500.0,0.00013424,2]
[353927359,1740151833126,-500.0,0.00013424,2]
[353927361,1740151833136,-500.0,0.00013424,2]
[353927363,1740151833146,-500.0,0.00013424,2]
[353927365,1740151833157,-500.0,0.00013424,2]
[353927367,1740151833166,-500.0,0.00013424,2]
[353927369,1740151833177,-500.0,0.00013424,2]
[353927371,1740151833187,-500.0,0.00013424,2]
[353927373,1740151833196,-500.0,0.00013424,2]
[353927375,1740151833205,-500.0,0.00013424,2]
[353927377,1740151833215,-500.0,0.00013424,2]
[353927379,1740151833225,-500.0,0.00013424,2]
[353927381,1740151833234,-500.0,0.00013424,2]
[353927383,1740151833243,-500.0,0.00013424,2]
[353927385,1740151833254,-500.0,0.00013424,2]
[353927387,1740151833263,-500.0,0.00013424,2]
[353927389,1740151833272,-500.0,0.00013424,2]
[353927391,1740151833281,-500.0,0.00013424,2]
[353927393,1740151833290,-173.95077481,0.00013424,2]
[353927395,1740151833300,-500.0,0.00013424,2]
[353927397,1740151833309,-500.0,0.00013424,2]
[353927399,1740151833319,-500.0,0.00013424,2]
[353927401,1740151833329,-500.0,0.00013424,2]
[353927403,1740151833338,-500.0,0.00013424,2]
[353927405,1740151833348,-500.0,0.00013424,2]
[353927407,1740151833359,-500.0,0.00013424,2]
[353927409,1740151833369,-500.0,0.00013424,2]
[353927411,1740151833380,-500.0,0.00013424,2]
[353927413,1740151833390,-500.0,0.00013424,2]
[353927415,1740151833400,-500.0,0.00013424,2]
[353927417,1740151833410,-500.0,0.00013424,2]
[353927419,1740151833419,-500.0,0.00013424,2]
[353927421,1740151833429,-667.43,0.00013424,2]
[353927423,1740151833440,-565.16,0.00013424,2]
[353927425,1740151833450,-500.0,0.00013424,2]
[353927427,1740151833460,-500.0,0.00013424,2]
[353927429,1740151833470,-500.0,0.00013424,2]
[353927430,1740151833480,-500.0,0.00013424,2]
[353927431,1740151833490,-500.0,0.00013424,2]
[353927432,1740151833499,-500.0,0.00013424,2]
[353927434,1740151833508,-500.0,0.00013424,2]
[353927436,1740151833518,-500.0,0.00013424,2]
[353927438,1740151833528,-500.0,0.00013424,2]
[353927439,1740151833537,-500.0,0.00013424,2]
[353927440,1740151833547,-500.0,0.00013424,2]
[353927441,1740151833556,-504.30473122,0.00013424,2]
[353927442,1740151833566,-500.0,0.00013424,2]
[353927443,1740151833576,-500.0,0.00013424,2]
[353927445,1740151833586,-500.0,0.00013424,2]
[353927447,1740151833595,-500.0,0.00013424,2]
[353927449,1740151833610,-523.5,0.00013424,2]
[353927451,1740151833619,-528.94595342,0.00013424,2]
[353927453,1740151833630,-500.0,0.00013424,2]
[353927455,1740151833639,-500.0,0.00013424,2]
[353927457,1740151833649,-821.52,0.00013424,2]
[353927459,1740151833658,-500.0,0.00013424,2]
[353927461,1740151833667,-510.99,0.00013424,2]
[353927463,1740151833677,-500.0,0.00013424,2]
[353927465,1740151833688,-500.0,0.00013424,2]
[353927467,1740151833699,-500.0,0.00013424,2]
[353927469,1740151833708,-156.769672,0.00013424,2]
[353927471,1740151833717,-4971.24,0.00013424,2]
[353927473,1740151833728,-500.0,0.00013424,2]
[353927475,1740151833738,-500.0,0.00013424,2]
[353927477,1740151833749,-500.0,0.00013424,2]
[353927479,1740151833758,-500.0,0.00013424,2]
[353927481,1740151833769,-1040.42,0.00013424,2]
[353927483,1740151833779,-500.0,0.00013424,2]
[353927485,1740151833788,-500.0,0.00013424,2]
[353927487,1740151833797,-500.0,0.00013424,2]
[353927489,1740151833807,-882.782388,0.00013424,2]
[353927491,1740151833816,-852.77,0.00013424,2]
[353927493,1740151833826,-500.0,0.00013424,2]
[353927495,1740151833835,-500.0,0.00013424,2]
[353927497,1740151833845,-702.92,0.00013424,2]
[353927499,1740151833854,-500.0,0.00013424,2]
[353927500,1740151833867,-500.0,0.00013424,2]
[353927502,1740151833878,-125.3231548,0.00013424,2]
[353927505,1740151833895,-801.8072532,0.00013424,2]
[353927507,1740151833904,-311.05852785,0.00013424,2]
[353927521,1740151834027,-351.95147215,0.00013424,2]
[353927523,1740151834037,-6.87282889,0.00013424,2]
[353927525,1740151834050,-493.12717111,0.00013424,2]
[353927527,1740151834059,-98.69932989,0.00013424,2]
[353927529,1740151834071,-728.29067011,0.00013424,2]
[353927531,1740151834081,-159.831113,0.00013424,2]
[353927533,1740151834091,-500.0,0.00013424,2]
[353927534,1740151834101,-1196.47821689,0.00013424,2]
[353927535,1740151834115,-495.28178311,0.00013424,2]
[353927536,1740151834125,-500.0,0.00013424,2]
[353927537,1740151834134,-1317.09,0.00013424,2]
[353927538,1740151834144,-500.0,0.00013424,2]
[353927539,1740151834154,-605.34431056,0.00013424,2]
[353927540,1740151834166,-96.97568944,0.00013424,2]
[353927541,1740151834176,-444.08315279,0.00013424,2]
[353927542,1740151834188,-55.91684721,0.00013424,2]
[353927543,1740151834198,-1232.7,0.00013424,2]
[353927544,1740151834207,-1031.7,0.00013424,2]
[353927545,1740151834217,-500.0,0.00013424,2]
[353927546,1740151834227,-921.5,0.00013424,2]
[353927547,1740151834381,-539.75,0.00013424,2]
[353927548,1740151834390,-500.0,0.00013424,2]
[353927549,1740151834400,-968.24,0.00013424,2]
[353927550,1740151834411,-1152.93,0.00013424,2]
[353927551,1740151834420,-500.0,0.00013424,2]
[353927552,1740151834430,-500.0,0.00013424,2]
[353927553,1740151834440,-3705.4,0.00013424,2]
[353927554,1740151834450,-500.0,0.00013424,2]
[353927555,1740151834460,-951.81,0.00013424,2]
[353927556,1740151834469,-500.0,0.00013424,2]
[353927557,1740151834478,-500.0,0.00013424,2]
[353927558,1740151834488,-531.31,0.00013424,2]
[353927559,1740151834499,-2017.54,0.00013424,2]
[353927560,1740151834508,-829.86,0.00013424,2]
[353927561,1740151834519,-1408.59,0.00013424,2]
[353927562,1740151834529,-500.0,0.00013424,2]
[353927563,1740151834539,-500.0,0.00013424,2]
[353927564,1740151834548,-1437.77,0.00013424,2]
[353927565,1740151834558,-1323.5,0.00013424,2]
[353927566,1740151834568,-934.35,0.00013424,2]
[353927567,1740151834577,-500.0,0.00013424,2]
[353927568,1740151834587,-585.55,0.00013424,2]
[353927569,1740151834597,-1570.17,0.00013424,2]
[353927570,1740151834608,-780.12,0.00013424,2]
[353927571,1740151834620,-885.31,0.00013424,2]
[353927572,1740151834631,-866.99,0.00013424,2]
[353927573,1740151834641,-1094.0,0.00013424,2]
[353927574,1740151834651,-500.0,0.00013424,2]
[353927575,1740151834661,-1034.06,0.00013424,2]
[353927576,1740151834670,-500.0,0.00013424,2]
[353927577,1740151834680,-1196.16,0.00013424,2]
[353927578,1740151834690,-645.49,0.00013424,2]
[353927579,1740151834700,-500.0,0.00013424,2]
[353927580,1740151834709,-500.0,0.00013424,2]
[353927581,1740151834719,-1745.87,0.00013424,2]
[353927582,1740151834729,-500.0,0.00013424,2]
[353927583,1740151834739,-1611.73,0.00013424,2]
[353927584,1740151834749,-1037.18,0.00013424,2]
[353927585,1740151834758,-899.41,0.00013424,2]
[353927586,1740151834768,-669.14,0.00013424,2]
[353927587,1740151834779,-500.0,0.00013424,2]
[353927588,1740151834789,-500.0,0.00013424,2]
[353927589,1740151834799,-509.47741987,0.00013424,2]
[353927590,1740151834808,-637.09,0.00013424,2]
[353927591,1740151834818,-500.0,0.00013424,2]
[353927592,1740151834827,-1450.29,0.00013424,2]
[353927593,1740151834837,-500.0,0.00013424,2]
[353927594,1740151834846,-593.34,0.00013424,2]
[353927595,1740151834856,-500.0,0.00013424,2]
[353927596,1740151834867,-1023.83,0.00013424,2]
[353927597,1740151834876,-500.0,0.00013424,2]
[353927598,1740151834885,-500.0,0.00013424,2]
[353927599,1740151834894,-1428.74,0.00013424,2]
[353927600,1740151834904,-500.0,0.00013424,2]
[353927601,1740151834914,-500.0,0.00013424,2]
[353927602,1740151834923,-1221.09,0.00013424,2]
[353927603,1740151834932,-500.0,0.00013424,2]
[353927604,1740151834942,-2069.44,0.00013424,2]
[353927605,1740151834952,-1304.05,0.00013424,2]
[353927606,1740151834961,-422.84801715,0.00013424,2]
[353927607,1740151834971,-686.78,0.00013424,2]
[353927608,1740151834980,-424.82249176,0.00013424,2]
[353927609,1740151834989,-500.0,0.00013424,2]
[353927610,1740151834999,-543.76,0.00013424,2]
[353927611,1740151835008,-1284.37,0.00013424,2]
[353927612,1740151835018,-500.0,0.00013424,2]
[353927613,1740151835027,-500.0,0.00013424,2]
[353927614,1740151835037,-500.0,0.00013424,2]
[353927615,1740151835046,-500.0,0.00013424,2]
[353927616,1740151835055,-500.0,0.00013424,2]
[353927617,1740151835065,-500.0,0.00013424,2]
[353927618,1740151835074,-500.0,0.00013424,2]
[353927619,1740151835084,-500.0,0.00013424,2]
[353927620,1740151835094,-500.0,0.00013424,2]
[353927621,1740151835103,-735.55,0.00013424,2]
[353927622,1740151835115,-1087.19,0.00013424,2]
[353927623,1740151835125,-545.58,0.00013424,2]
[353927624,1740151835135,-425.57766253,0.00013424,2]
[353927625,1740151835148,-74.42233747,0.00013424,2]
[353927626,1740151835157,-500.0,0.00013424,2]
[353927627,1740151835167,-1041.46,0.00013424,2]
[353927628,1740151835176,-1044.04963587,0.00013424,2]
[353927629,1740151835188,-247.53036413,0.00013424,2]
[353927630,1740151835198,-500.0,0.00013424,2]
[353927631,1740151835208,-607.70010602,0.00013424,2]
[353927632,1740151835217,-500.0,0.00013424,2]
[353927633,1740151835227,-500.0,0.00013424,2]
[353927634,1740151835236,-500.0,0.00013424,2]
[353927635,1740151835246,-500.0,0.00013424,2]
[353927636,1740151835255,-500.0,0.00013424,2]
[353927637,1740151835264,-1917.27,0.00013424,2]
[353927638,1740151835274,-500.0,0.00013424,2]
[353927639,1740151835283,-500.0,0.00013424,2]
[353927640,1740151835293,-8032.42707416,0.00013449,2]
[353927641,1740151835303,-1520.07511546,0.00013449,2]
[353927642,1740151835312,-501.23613082,0.00013473,2]
[353927643,1740151835322,-601.14675815,0.00013473,2]
[353927644,1740151835331,-304.481317,0.00013473,2]
[353927645,1740151835341,-199.85948,0.00013473,2]
[353927646,1740151835351,-161.59580337,0.00013473,2]
[353927647,1740151835363,-150.0,0.00013487,2]
[353927648,1740151835373,-8032.42707416,0.00013491,2]
[353927649,1740151835383,-1520.07511546,0.00013491,2]
[353927650,1740151835392,-231.3043819,0.00013498,3]
[353927651,1740151835401,-75791.56308535,0.00013498,3]
[353927652,1740151835419,-271.000002,0.00013498,3]
[353927653,1740151835431,-25023.60510296,0.00013498,3]
[353927654,1740151835455,-500.0,0.00013424,2]
[353927655,1740151835464,-889.34589006,0.00013498,3]
[353927656,1740151835475,-585.17802667,0.00013498,3]
[353927657,1740151835487,-30471.50629251,0.00013498,3]
[353927658,1740151835499,-135625.80443786,0.00013498,3]
[353927685,1740151838161,-501.84431738,0.00013424,2]
[353927687,1740151838171,-500.0,0.00013424,2]
[353927689,1740151838180,-500.0,0.00013424,2]
[353927691,1740151838190,-500.0,0.00013424,2]
[353927693,1740151838199,-787.29,0.00013424,2]
[353927695,1740151838209,-595018.48296133,0.00013498,3]
[353927697,1740151838220,-2067.21978566,0.00013498,3]
[353927699,1740151838231,-1618.6932435,0.00013498,3]
[353927702,1740151838243,-13672.74986787,0.00013498,3]
[353927704,1740151838255,-1321.6268795,0.00013498,3]
[353927706,1740151838266,-657.20886392,0.00013498,3]
[353927709,1740151838284,-1217.63557993,0.00013498,3]
[353927711,1740151838295,-1690.88791309,0.00013498,3]
[353927714,1740151838321,-525.67,0.00013424,2]
[353927716,1740151838331,-24966.74351473,0.00013498,3]
[353927718,1740151838343,-32493.22615798,0.00013498,3]
[353927721,1740151838354,-13336.42233272,0.00013498,3]
[353927723,1740151838370,-13565.0,0.00013498,3]
[353927725,1740151838381,-20613.11336725,0.00013498,3]
[353927727,1740151838393,-21537.52607062,0.00013498,3]
[353927729,1740151838403,-46015.53128106,0.00013498,3]
[353927736,1740151838427,-500.0,0.00013424,2]
[353927739,1740151838437,-13926.29258008,0.00013498,3]
[353927742,1740151838448,-6061.52160548,0.00013498,3]
[353927745,1740151838459,-61241.21258413,0.00013498,3]
[353927748,1740151838471,-6910.2,0.00013498,3]
[353927896,1740151839874,-500.0,0.00013424,2]
[353927898,1740151839884,-49226.62340713,0.00013498,3]
[353927928,1740151840172,-50669.71139391,0.00013498,3]
[353927930,1740151840181,-300.0,0.00013499,2]
[353927931,1740151840191,-67675.67481133,0.00013499,2]
[353927934,1740151840203,-11622.32075781,0.00013499,2]
[353927937,1740151840219,-437.358,0.00013499,2]
[353927939,1740151840231,-5345.96539232,0.00013499,2]
[353927941,1740151840242,-599.73698605,0.00013499,2]
[353927943,1740151840253,-5300.0,0.00013499,2]
[353927945,1740151840266,-2436.99260618,0.00013499,2]
[353927948,1740151840276,-431.81187777,0.00013499,2]
[353927955,1740151840332,-269542.43,0.00013499,2]
[353927963,1740151840403,-947.74,0.00013424,2]
[353927965,1740151840413,-185456.6528102,0.00013499,2]
[353927967,1740151840422,-290.46483086,0.00013499,2]
[353927969,1740151840431,-369.11725619,0.00013499,2]
[353927971,1740151840440,-504.72989289,0.00013499,2]
[353927973,1740151840450,-503.72801651,0.00013499,2]
[353927975,1740151840459,-500.0,0.00013499,2]
[353927977,1740151840468,-500.0,0.00013499,2]
[353927979,1740151840477,-500.0,0.00013499,2]
[353927981,1740151840486,-500.0,0.00013499,2]
[353927983,1740151840496,-500.0,0.00013499,2]
[353927985,1740151840505,-500.0,0.00013499,2]
[353927987,1740151840515,-500.0,0.00013499,2]
[353927989,1740151840525,-500.0,0.00013499,2]
[353927991,1740151840534,-576.57803035,0.00013499,2]
[353927993,1740151840543,-500.0,0.00013499,2]
[353927995,1740151840553,-500.0,0.00013499,2]
[353927997,1740151840562,-500.0,0.00013499,2]
[353927999,1740151840571,-500.0,0.00013499,2]
[353928001,1740151840580,-500.0,0.00013499,2]
[353928002,1740151840590,-500.0,0.00013499,2]
[353928003,1740151840599,-500.0,0.00013499,2]
[353928004,1740151840616,-500.0,0.00013499,2]
[353928005,1740151840625,-500.0,0.00013499,2]
[353928006,1740151840635,-632.98,0.00013499,2]
[353928007,1740151840644,-443.99741173,0.00013499,2]
[353928008,1740151840654,-500.0,0.00013499,2]
[353928009,1740151840664,-536.79992226,0.00013499,2]
[353928010,1740151840673,-500.0,0.00013499,2]
[353928012,1740151840684,-500.0,0.00013499,2]
[353928014,1740151840694,-500.0,0.00013499,2]
[353928016,1740151840703,-500.0,0.00013499,2]
[353928018,1740151840712,-500.0,0.00013499,2]
[353928020,1740151840721,-500.0,0.00013499,2]
[353928022,1740151840730,-546.96336271,0.00013499,2]
[353928024,1740151840739,-500.0,0.00013499,2]
[353928026,1740151840748,-501.98235384,0.00013499,2]
[353928027,1740151840757,-500.0,0.00013499,2]
[353928030,1740151840767,-500.0,0.00013499,2]
[353928031,1740151840776,-500.0,0.00013499,2]
[353928034,1740151840785,-500.0,0.00013499,2]
[353928035,1740151840795,-500.0,0.00013499,2]
[353928037,1740151840804,-500.0,0.00013499,2]
[353928039,1740151840813,-764.36,0.00013499,2]
[353928041,1740151840822,-500.0,0.00013499,2]
[353928046,1740151840996,-500.0,0.00013499,2]
[353928047,1740151841006,-500.0,0.00013499,2]
[353928048,1740151841015,-500.0,0.00013499,2]
[353928050,1740151841024,-500.0,0.00013499,2]
[353928052,1740151841033,-500.0,0.00013499,2]
[353928054,1740151841042,-500.0,0.00013499,2]
[353928056,1740151841051,-500.0,0.00013499,2]
[353928058,1740151841061,-500.0,0.00013499,2]
[353928060,1740151841070,-500.0,0.00013499,2]
[353928062,1740151841079,-500.0,0.00013499,2]
[353928064,1740151841088,-500.43356933,0.00013499,2]
[353928066,1740151841099,-500.0,0.00013499,2]
[353928068,1740151841108,-501.32080227,0.00013499,2]
[353928070,1740151841119,-500.0,0.00013499,2]
[353928072,1740151841128,-500.0,0.00013499,2]
[353928074,1740151841137,-501.68654817,0.00013499,2]
[353928076,1740151841146,-169.23696422,0.00013499,2]
[353928078,1740151841156,-500.0,0.00013499,2]
[353928080,1740151841166,-500.0,0.00013499,2]
[353928082,1740151841176,-500.0,0.00013499,2]
[353928083,1740151841186,-500.0,0.00013499,2]
[353928085,1740151841196,-500.0,0.00013499,2]
[353928087,1740151841205,-500.0,0.00013499,2]
[353928089,1740151841214,-537.85206446,0.00013499,2]
[353928091,1740151841223,-500.0,0.00013499,2]
[353928093,1740151841232,-500.0,0.00013499,2]
[353928095,1740151841241,-500.0,0.00013499,2]
[353928097,1740151841250,-500.0,0.00013499,2]
[353928099,1740151841259,-502.81060848,0.00013499,2]
[353928101,1740151841268,-500.0,0.00013499,2]
[353928103,1740151841277,-500.0,0.00013499,2]
[353928105,1740151841286,-500.0,0.00013499,2]
[353928107,1740151841296,-500.0,0.00013499,2]
[353928109,1740151841305,-500.0,0.00013499,2]
[353928111,1740151841314,-500.0,0.00013499,2]
[353928113,1740151841323,-500.0,0.00013499,2]
[353928115,1740151841332,-500.0,0.00013499,2]
[353928117,1740151841341,-500.0,0.00013499,2]
[353928119,1740151841350,-500.0,0.00013499,2]
[353928121,1740151841359,-500.0,0.00013499,2]
[353928123,1740151841370,-500.0,0.00013499,2]
[353928125,1740151841379,-504.49332636,0.00013499,2]
[353928127,1740151841389,-500.0,0.00013499,2]
[353928129,1740151841398,-500.0,0.00013499,2]
[353928131,1740151841408,-500.0,0.00013499,2]
[353928133,1740151841417,-229.37199209,0.00013499,2]
[353928135,1740151841426,-500.0,0.00013499,2]
[353928137,1740151841435,-374.70322505,0.00013499,2]
[353928139,1740151841444,-500.0,0.00013499,2]
[353928141,1740151841453,-500.0,0.00013499,2]
[353928143,1740151841462,-500.0,0.00013499,2]
[353928145,1740151841472,-502.06568557,0.00013499,2]
[353928147,1740151841481,-500.0,0.00013499,2]
[353928149,1740151841490,-500.0,0.00013499,2]
[353928151,1740151841499,-500.0,0.00013499,2]
[353928153,1740151841509,-501.82390292,0.00013499,2]
[353928155,1740151841519,-500.0,0.00013499,2]
[353928157,1740151841528,-500.0,0.00013499,2]
[353928159,1740151841537,-500.0,0.00013499,2]
[353928161,1740151841546,-500.0,0.00013499,2]
[353928163,1740151841555,-1825.18,0.00013499,2]
[353928165,1740151841564,-500.0,0.00013499,2]
[353928167,1740151841573,-500.0,0.00013499,2]
[353928169,1740151841582,-500.0,0.00013499,2]
[353928171,1740151841591,-656.47,0.00013499,2]
[353928173,1740151841601,-500.0,0.00013499,2]
[353928175,1740151841617,-1595.51,0.00013499,2]
[353928177,1740151841626,-500.0,0.00013499,2]
[353928179,1740151841635,-500.0,0.00013499,2]
[353928181,1740151841644,-781.73,0.00013499,2]
[353928183,1740151841654,-503.74222016,0.00013499,2]
[353928186,1740151841665,-1418.9,0.00013499,2]
[353928187,1740151841674,-500.0,0.00013499,2]
[353928189,1740151841683,-530.95,0.00013499,2]
[353928191,1740151841694,-3447.25,0.00013499,2]
[353928193,1740151841703,-928.28,0.00013499,2]
[353928195,1740151841712,-501.37795754,0.00013499,2]
[353928198,1740151841722,-359.52535536,0.00013499,2]
[353928200,1740151841731,-500.0,0.00013499,2]
[353928201,1740151841740,-1341.63,0.00013499,2]
[353928202,1740151841749,-533.37,0.00013499,2]
[353928203,1740151841758,-500.0,0.00013499,2]
[353928204,1740151841767,-500.0,0.00013499,2]
[353928205,1740151841776,-500.0,0.00013499,2]
[353928206,1740151841785,-162.69,0.00013499,2]
[353928207,1740151841795,-505.45188928,0.00013499,2]
[353928208,1740151841804,-839.05,0.00013499,2]
[353928209,1740151841813,-500.0,0.00013499,2]
[353928210,1740151841822,-500.0,0.00013499,2]
[353928211,1740151841831,-155.9957917,0.00013499,2]
[353928212,1740151841840,-575.53,0.00013499,2]
[353928213,1740151841850,-1021.4,0.00013499,2]
[353928214,1740151841859,-502.66010619,0.00013499,2]
[353928215,1740151841871,-1046.2,0.00013499,2]
[353928216,1740151841880,-500.0,0.00013499,2]
[353928217,1740151841889,-500.0,0.00013499,2]
[353928218,1740151841898,-500.0,0.00013499,2]
[353928219,1740151841908,-500.0,0.00013499,2]
[353928220,1740151841917,-500.0,0.00013499,2]
[353928222,1740151841926,-500.0,0.00013499,2]
[353928224,1740151841935,-1090.09,0.00013499,2]
[353928226,1740151841945,-500.0,0.00013499,2]
[353928227,1740151841954,-410.38141598,0.00013499,2]
[353928229,1740151841963,-500.0,0.00013499,2]
[353928231,1740151841972,-2673.16,0.00013499,2]
[353928233,1740151841982,-500.0,0.00013499,2]
[353928235,1740151841991,-530.40543059,0.00013499,2]
[353928237,1740151842000,-553.74,0.00013499,2]
[353928239,1740151842011,-500.0,0.00013499,2]
[353928242,1740151842021,-500.0,0.00013499,2]
[353928243,1740151842036,-500.0,0.00013499,2]
[353928245,1740151842045,-500.0,0.00013499,2]
[353928247,1740151842054,-539.04,0.00013499,2]
[353928249,1740151842063,-500.0,0.00013499,2]
[353928251,1740151842072,-500.0,0.00013499,2]
[353928253,1740151842081,-500.0,0.00013499,2]
[353928254,1740151842090,-500.0,0.00013499,2]
[353928255,1740151842099,-500.0,0.00013499,2]
[353928256,1740151842108,-688.29,0.00013499,2]
[353928257,1740151842121,-500.0,0.00013499,2]
[353928258,1740151842130,-500.0,0.00013499,2]
[353928259,1740151842139,-500.0,0.00013499,2]
[353928260,1740151842149,-500.0,0.00013499,2]
[353928261,1740151842158,-500.0,0.00013499,2]
[353928262,1740151842167,-500.0,0.00013499,2]
[353928263,1740151842176,-500.0,0.00013499,2]
[353928264,1740151842186,-613.72,0.00013499,2]
[353928265,1740151842195,-500.0,0.00013499,2]
[353928266,1740151842204,-500.0,0.00013499,2]
[353928267,1740151842213,-356.20175352,0.00013499,2]
[353928268,1740151842223,-500.0,0.00013499,2]
[353928269,1740151842232,-500.0,0.00013499,2]
[353928270,1740151842241,-500.0,0.00013499,2]
[353928271,1740151842250,-500.0,0.00013499,2]
[353928272,1740151842259,-726.54,0.00013499,2]
[353928273,1740151842268,-500.0,0.00013499,2]
[353928274,1740151842277,-1361.88,0.00013499,2]
[353928275,1740151842287,-503.28011128,0.00013499,2]
[353928276,1740151842295,-500.0,0.00013499,2]
[353928277,1740151842304,-500.0,0.00013499,2]
[353928278,1740151842313,-849.43,0.00013499,2]
[353928279,1740151842322,-547.16,0.00013499,2]
[353928280,1740151842331,-698.87,0.00013499,2]
[353928281,1740151842340,-1221.09,0.00013499,2]
[353928282,1740151842350,-1221.09,0.00013499,2]
[353928283,1740151842359,-883.64,0.00013499,2]
[353928284,1740151842372,-601.2,0.00013499,2]
[353928285,1740151842381,-1219.34,0.00013499,2]
[353928286,1740151842390,-500.0,0.00013499,2]